Workbook

Sheet Sheet1
A1: 阳山县慈善会2025年“6·30”助力乡村振兴活动捐款收支情况明细表
A3: 收支时间：2025年6月1日 -2025年10月20日 | M3: 金额单位：元
B4: 捐赠收入明细 | G4: 项目捐赠支出明细 | L4: 结余金额 | M4: 资金使用情况说明
A5: 序号 | B5: 捐赠单位名称 | C5: 款项来源 | D5: 金额 | E5: 捐款时间 | F5: 是否定向 | G5: 接收单位（个人）名称 | H5: 账号 | I5: 开户行 | J5: 金额 | K5: 支付时间
A6: 1 | B6: kk | C6: 个人 | D6: 10.00 | E6: 2025-06-26T10:25:37 | F6: 否 | L6: =D6-J6 -> 10.00
A7: 2 | B7: 李子 | C7: 个人 | D7: 2.00 | E7: 2025-06-26T21:38:30 | F7: 否 | L7: =D7-J7 -> 2.00
A8: 3 | B8: 欧 | C8: 个人 | D8: 2.00 | E8: 2025-06-27T08:41:23 | F8: 否 | L8: 2.00
A9: 4 | B9: 全镇锋 | C9: 个人 | D9: 50.00 | E9: 2025-06-27T08:46:49 | F9: 否 | L9: 50.00
A10: 5 | B10: 阳山县归国华侨联合会 | C10: 事业单位 | D10: 700.00 | E10: 2025-06-27T10:48:23 | F10: 否 | L10: 700.00
A11: 6 | B11: 椰子^ | C11: 个人 | D11: 5.00 | E11: 2025-06-27T12:16:47 | F11: 否 | L11: 5.00
A12: 7 | B12: D-eve | C12: 个人 | D12: 0.50 | E12: 2025-06-27T12:27:47 | F12: 否 | L12: 0.50
A13: 8 | B13: 阳山县财政局 | C13: 机关 | D13: 12600.00 | E13: 2025-06-27T16:43:41 | F13: 否 | L13: 12600.00
A14: 9 | B14: 金宝贝幼儿园（黄*芳） | C14: 个人 | D14: 500.00 | E14: 2025-06-27T17:10:22 | F14: 否 | L14: 500.00
A15: 10 | B15: A福胜 | C15: 个人 | D15: 333.00 | E15: 2025-06-27T20:38:33 | F15: 否 | L15: 333.00
A16: 11 | B16: 爱心人士 | C16: 个人 | D16: 10.00 | E16: 2025-06-27T20:38:34 | F16: 否 | L16: 10.00
A17: 12 | B17: 东莞市大岭山神墨艺术培训中心有限公司 | C17: 企业 | D17: 118 | E17: 2025-06-27T23:56:35 | F17: 是 | L17: 118.00 | M17: 阳山县小江镇珠光村委会铜锣村
A18: 13 | B18: 张少珍 | C18: 个人 | D18: 50.00 | E18: 2025-06-28T10:50:56 | F18: 否 | L18: 50.00
A19: 14 | B19: 王宇 | C19: 个人 | D19: 1800.00 | E19: 2025-06-28T10:55:32 | F19: 否 | L19: 1800.00
A20: 15 | B20: 阳山县阳城镇百福味包子店 | C20: 个人 | D20: 100.00 | E20: 2025-06-28T13:08:08 | F20: 否 | L20: 100.00
A21: 16 | B21: 酷比爽味包阳山佰盛店 | C21: 企业 | D21: 200.00 | E21: 2025-06-28T13:18:15 | F21: 否 | L21: 200.00
A22: 17 | B22: 陈丽文 | C22: 个人 | D22: 200.00 | E22: 2025-06-28T14:18:04 | F22: 否 | L22: 200.00
A23: 18 | B23: 广州毛旺乐器科技有限公司 | C23: 企业 | D23: 500.00 | E23: 2025-06-28T14:49:57 | F23: 否 | L23: 500.00
A24: 19 | B24: 中国平安彭玉英 | C24: 个人 | D24: 233.00 | E24: 2025-06-28T21:02:03 | F24: 否 | L24: 233.00
A25: 20 | B25: 爱心人士 | C25: 个人 | D25: 20.00 | E25: 2025-06-28T22:02:27 | F25: 否 | L25: 20.00
A26: 21 | B26: 广东定海针（阳山）律师事务所 | C26: 个人 | D26: 500.00 | E26: 2025-06-28T22:36:52 | F26: 否 | L26: 500.00
A27: 22 | B27: 爱心人士 | C27: 个人 | D27: 2000.00 | E27: 2025-06-29T10:32:31 | F27: 否 | L27: 2000.00
A28: 23 | B28: 爱心人士 | C28: 个人 | D28: 1.00 | E28: 2025-06-29T20:08:22 | F28: 否 | L28: 1.00
A29: 24 | B29: 丘秀芹 | C29: 个人 | D29: 5.00 | E29: 2025-06-29T22:42:11 | F29: 否 | L29: 5.00
A30: 25 | B30: .&朝朝&. | C30: 个人 | D30: 5.00 | E30: 2025-06-29T22:44:29 | F30: 否 | L30: 5.00
A31: 26 | B31: andyt | C31: 个人 | D31: 5.00 | E31: 2025-06-29T22:57:25 | F31: 否 | L31: 5.00
A32: 27 | B32: 7 | C32: 个人 | D32: 5.00 | E32: 2025-06-30T07:54:09 | F32: 否 | L32: 5.00
A33: 28 | B33: 爱心人士 | C33: 个人 | D33: 1.00 | E33: 2025-06-30T07:55:01 | F33: 否 | L33: 1.00
A34: 29 | B34: ? ?? | C34: 个人 | D34: 0.50 | E34: 2025-06-30T07:57:52 | F34: 否 | L34: 0.50
A35: 30 | B35: _777^ | C35: 个人 | D35: 1.00 | E35: 2025-06-30T07:58:13 | F35: 否 | L35: 1.00
A36: 31 | B36: 爱心人士 | C36: 个人 | D36: 5.00 | E36: 2025-06-30T09:00:31 | F36: 否 | L36: 5.00
A37: 32 | B37: 李慧芳 | C37: 个人 | D37: 100 | E37: 2025-06-30T09:38:06 | F37: 是 | L37: 100.00 | M37: 江英镇
A38: 33 | B38: 爱心人士 | C38: 个人 | D38: 2.00 | E38: 2025-06-30T09:45:41 | F38: 否 | L38: 2.00
A39: 34 | B39: 爱心人士 | C39: 个人 | D39: 2.00 | E39: 2025-06-30T09:50:22 | F39: 否 | L39: 2.00
A40: 35 | B40: 贱 | C40: 个人 | D40: 1.00 | E40: 2025-06-30T09:54:40 | F40: 否 | L40: 1.00
A41: 36 | B41: 雪月寒歌 | C41: 个人 | D41: 0.10 | E41: 2025-06-30T10:09:01 | F41: 否 | L41: 0.10
A42: 37 | B42: 阳山县肉联有限公司 | C42: 企业 | D42: 3780.00 | E42: 2025-06-30T10:16:00 | F42: 否 | L42: 3780.00
A43: 38 | B43: 爱心人士 | C43: 个人 | D43: 100.00 | E43: 2025-06-30T10:25:32 | F43: 否 | L43: 100.00
A44: 39 | B44: 阳山县耀阳农村农业投资开发有限公司 | C44: 企业 | D44: 1300.00 | E44: 2025-06-30T10:25:57 | F44: 否 | L44: 1300.00
A45: 40 | B45: 无 话 不 谈 | C45: 个人 | D45: 820.00 | E45: 2025-06-30T11:06:30 | F45: 否 | L45: 820.00
A46: 41 | B46: 阳城镇中心小学 | C46: 事业单位 | D46: 50.00 | E46: 2025-06-30T11:17:39 | F46: 否 | L46: 50.00
A47: 42 | B47: 熊子菡 | C47: 个人 | D47: 20.00 | E47: 2025-06-30T12:18:30 | F47: 否 | L47: 20.00
A48: 43 | B48: 谢惠欣 | C48: 个人 | D48: 20.00 | E48: 2025-06-30T12:24:16 | F48: 否 | L48: 20.00
A49: 44 | B49: 刘惠婷 | C49: 个人 | D49: 20.00 | E49: 2025-06-30T12:25:14 | F49: 否 | L49: 20.00
A50: 45 | B50: 成俊皓 | C50: 个人 | D50: 20.00 | E50: 2025-06-30T12:26:38 | F50: 否 | L50: 20.00
A51: 46 | B51: 阿宇 | C51: 个人 | D51: 5.00 | E51: 2025-06-30T13:34:38 | F51: 否 | L51: 5.00
A52: 47 | B52: 陈晋毅 | C52: 个人 | D52: 5.00 | E52: 2025-06-30T14:01:22 | F52: 否 | L52: 5.00
A53: 48 | B53: 爱心人士 | C53: 个人 | D53: 30.00 | E53: 2025-06-30T14:35:11 | F53: 否 | L53: 30.00
A54: 49 | B54: 清远市伟来塑料原料有限公司 | C54: 企业 | D54: 500 | E54: 2025-06-30T14:46:56 | F54: 是 | L54: 500.00 | M54: 七拱镇塘坪村
A55: 50 | B55: 爱心人士 | C55: 个人 | D55: 30.00 | E55: 2025-06-30T15:03:30 | F55: 否 | L55: 30.00
A56: 51 | B56: 金（有志） | C56: 个人 | D56: 30.00 | E56: 2025-06-30T15:03:37 | F56: 否 | L56: 30.00
A57: 52 | B57: 爱心人士 | C57: 个人 | D57: 30.00 | E57: 2025-06-30T15:07:55 | F57: 否 | L57: 30.00
A58: 53 | B58: 阳山县润丰农业综合开发有限公司 | C58: 企业 | D58: 1360.00 | E58: 2025-06-30T15:22:20 | F58: 否 | L58: 1360.00
A59: 54 | B59: 波涛 | C59: 个人 | D59: 30.00 | E59: 2025-06-30T15:22:46 | F59: 否 | L59: 30.00
A60: 55 | B60: 李丽英 | C60: 个人 | D60: 30.00 | E60: 2025-06-30T15:25:58 | F60: 否 | L60: 30.00
A61: 56 | B61: 张 | C61: 个人 | D61: 20.00 | E61: 2025-06-30T15:31:20 | F61: 否 | L61: 20.00
A62: 57 | B62: 无忧草 | C62: 个人 | D62: 20.00 | E62: 2025-06-30T15:32:27 | F62: 否 | L62: 20.00
A63: 58 | B63: 樱花草 | C63: 个人 | D63: 20.00 | E63: 2025-06-30T15:33:22 | F63: 否 | L63: 20.00
A64: 59 | B64: 芳嘛 | C64: 个人 | D64: 20.00 | E64: 2025-06-30T15:35:01 | F64: 否 | L64: 20.00
A65: 60 | B65: 苠苠 | C65: 个人 | D65: 20.00 | E65: 2025-06-30T15:35:26 | F65: 否 | L65: 20.00
A66: 61 | B66: 三峡小江项目员工 | C66: 个人 | D66: 2000 | E66: 2025-06-30T15:36:01 | F66: 是 | L66: 2000.00 | M66: 黎埠镇六古村委会
A67: 62 | B67: 冯莲娣 | C67: 个人 | D67: 20.00 | E67: 2025-06-30T15:37:14 | F67: 否 | L67: 20.00
A68: 63 | B68: 爱心人士 | C68: 个人 | D68: 20.00 | E68: 2025-06-30T15:39:03 | F68: 否 | L68: 20.00
A69: 64 | B69: 爱心人士 | C69: 个人 | D69: 20.00 | E69: 2025-06-30T15:40:53 | F69: 否 | L69: 20.00
A70: 65 | B70: Mr.liang | C70: 个人 | D70: 20.00 | E70: 2025-06-30T15:42:24 | F70: 否 | L70: 20.00
A71: 66 | B71: 成景华 | C71: 个人 | D71: 10.00 | E71: 2025-06-30T15:44:03 | F71: 否 | L71: =D71-J71 -> 10.00
A72: 67 | B72: 毛伟玲 | C72: 个人 | D72: 20.00 | E72: 2025-06-30T15:44:35 | F72: 否 | L72: 20.00
A73: 68 | B73: 刘瑞萍 | C73: 个人 | D73: 20.00 | E73: 2025-06-30T15:48:31 | F73: 否 | L73: 20.00
A74: 69 | B74: 蓝阳坚 | C74: 个人 | D74: 50.00 | E74: 2025-06-30T15:52:20 | F74: 否 | L74: 50.00
A75: 70 | B75: 皮皮 | C75: 个人 | D75: 10.00 | E75: 2025-06-30T15:53:21 | F75: 否 | L75: 10.00
A76: 71 | B76: CJX | C76: 个人 | D76: 10.00 | E76: 2025-06-30T16:02:53 | F76: 否 | L76: 10.00
A77: 72 | B77: vivi | C77: 个人 | D77: 20.00 | E77: 2025-06-30T16:03:28 | F77: 否 | L77: 20.00
A78: 73 | B78: 梁献欢 | C78: 个人 | D78: 20.00 | E78: 2025-06-30T16:04:39 | F78: 否 | L78: 20.00
A79: 74 | B79: 欧阳旺 | C79: 个人 | D79: 20.00 | E79: 2025-06-30T16:04:47 | F79: 否 | L79: 20.00
A80: 75 | B80: 太极 | C80: 个人 | D80: 500.00 | E80: 2025-06-30T16:11:44 | F80: 否 | L80: 500.00
A81: 76 | B81: 孔业莲13413502335 | C81: 个人 | D81: 20.00 | E81: 2025-06-30T16:20:03 | F81: 否 | L81: 20.00
A82: 77 | B82: 胡雪梅 | C82: 个人 | D82: 20.00 | E82: 2025-06-30T16:23:17 | F82: 否 | L82: 20.00
A83: 78 | B83: 杨梅镇进发建筑工程部 | C83: 企业 | D83: 1188 | E83: 2025-06-30T16:26:44 | F83: 是 | L83: 1188.00 | M83: 杨梅镇
A84: 79 | B84: 阳山县秤架二级水电站有限公司职工 | C84: 企业 | D84: 2500.00 | E84: 2025-06-30T16:30:14 | F84: 否 | L84: 2500.00
A85: 80 | B85: 梁小平 | C85: 个人 | D85: 20.00 | E85: 2025-06-30T16:31:46 | F85: 否 | L85: 20.00
A86: 81 | B86: 毛文延 | C86: 个人 | D86: 20.00 | E86: 2025-06-30T16:33:09 | F86: 否 | L86: 20.00
A87: 82 | B87: 陈素芳 | C87: 个人 | D87: 20.00 | E87: 2025-06-30T16:34:58 | F87: 否 | L87: 20.00
A88: 83 | B88: 爱心人士 | C88: 个人 | D88: 20.00 | E88: 2025-06-30T16:36:45 | F88: 否 | L88: 20.00
A89: 84 | B89: 爱心人士 | C89: 个人 | D89: 20.00 | E89: 2025-06-30T16:50:05 | F89: 否 | L89: 20.00
A90: 85 | B90: Dyd | C90: 个人 | D90: 20.00 | E90: 2025-06-30T16:50:58 | F90: 否 | L90: 20.00
A91: 86 | B91: 小丫头姐 | C91: 个人 | D91: 20.00 | E91: 2025-06-30T17:06:51 | F91: 否 | L91: 20.00
A92: 87 | B92: 随缘 | C92: 个人 | D92: 20.00 | E92: 2025-06-30T17:16:21 | F92: 否 | L92: 20.00
A93: 88 | B93: 山清水秀 | C93: 个人 | D93: 20.00 | E93: 2025-06-30T17:22:29 | F93: 否 | L93: 20.00
A94: 89 | B94: 中共阳山县委社会工作部 | C94: 机关 | D94: 2600.00 | E94: 2025-06-30T17:26:36 | F94: 否 | L94: 2600.00
A95: 90 | B95: 阳山县扬林木业有限公司 | C95: 企业 | D95: 500.00 | E95: 2025-06-30T18:03:02 | F95: 否 | L95: 500.00
A96: 91 | B96: 爱心人士 | C96: 个人 | D96: 10.00 | E96: 2025-06-30T18:09:32 | F96: 否 | L96: 10.00
A97: 92 | B97: 爱心人士 | C97: 个人 | D97: 20.00 | E97: 2025-06-30T20:09:59 | F97: 否 | L97: 20.00
A98: 93 | B98: 啊先 | C98: 个人 | D98: 1000.00 | E98: 2025-06-30T20:46:03 | F98: 否 | L98: 1000.00
A99: 94 | B99: 李玉文 | C99: 个人 | D99: 20.00 | E99: 2025-06-30T21:15:38 | F99: 否 | L99: 20.00
A100: 95 | B100: 温卫烽 | C100: 个人 | D100: 2000 | E100: 2025-06-30T21:26:44 | F100: 是 | L100: 2000.00 | M100: 杨梅镇
A101: 96 | B101: 爱心人士 | C101: 个人 | D101: 10.00 | E101: 2025-06-30T21:45:12 | F101: 否 | L101: 10.00
A102: 97 | B102: 沐雪听水 | C102: 个人 | D102: 10.00 | E102: 2025-06-30T21:53:38 | F102: 否 | L102: 10.00
A103: 98 | B103: 雪儿 | C103: 个人 | D103: 10.00 | E103: 2025-06-30T22:12:19 | F103: 否 | L103: 10.00
A104: 99 | B104: A3英莱壳康杨明机油 | C104: 个人 | D104: 10.00 | E104: 2025-06-30T22:41:14 | F104: 否 | L104: 10.00
A105: 100 | B105: 莹枫 | C105: 个人 | D105: 10.00 | E105: 2025-06-30T22:46:03 | F105: 否 | L105: 10.00
A106: 101 | B106: 小猪*宝宝 | C106: 个人 | D106: 10.00 | E106: 2025-06-30T22:50:14 | F106: 否 | L106: 10.00
A107: 102 | B107: . | C107: 个人 | D107: 10.00 | E107: 2025-06-30T22:54:20 | F107: 否 | L107: 10.00
A108: 103 | B108: 珍珍 | C108: 个人 | D108: 10.00 | E108: 2025-06-30T22:54:38 | F108: 否 | L108: 10.00
A109: 104 | B109: 化州市中植农业发展有限公司 | C109: 企业 | D109: 2000 | E109: 2025-06-30T23:05:18 | F109: 是 | L109: 2000.00 | M109: 七拱镇
A110: 105 | B110: momo | C110: 个人 | D110: 10.00 | E110: 2025-07-01T07:36:41 | F110: 否 | L110: 10.00
A111: 106 | B111: 阳山县碧桂园小学 | C111: 事业单位 | D111: 3360.00 | E111: 2025-07-01T08:28:50 | F111: 否 | L111: 3360.00
A112: 107 | B112: 清远市腾丰建筑工程有限公司 | C112: 企业 | D112: 3000 | E112: 2025-07-01T09:01:22 | F112: 是 | L112: 3000.00 | M112: 七拱镇塘坪村
A113: 108 | B113: 陈振文 | C113: 个人 | D113: 20.00 | E113: 2025-07-01T09:02:01 | F113: 否 | L113: 20.00
A114: 109 | B114: 爱心人士 | C114: 个人 | D114: 10.00 | E114: 2025-07-01T09:09:50 | F114: 否 | L114: 10.00
A115: 110 | B115: 李庆福 | C115: 个人 | D115: 1000 | E115: 2025-07-01T09:09:58 | F115: 是 | L115: 1000.00 | M115: 杨梅镇
A116: 111 | B116: 爱心人士 | C116: 个人 | D116: 100.00 | E116: 2025-07-01T10:01:07 | F116: 否 | L116: 100.00
A117: 112 | B117: 中共阳山县直属机关工作委员会 | C117: 机关 | D117: 2400.00 | E117: 2025-07-01T10:07:27 | F117: 否 | L117: 2400.00
A118: 113 | B118: 唐秀玲 | C118: 个人 | D118: 30.00 | E118: 2025-07-01T10:19:40 | F118: 否 | L118: 30.00
A119: 114 | B119: . | C119: 个人 | D119: 10.00 | E119: 2025-07-01T10:23:32 | F119: 否 | L119: 10.00
A120: 115 | B120: 爱琴海 | C120: 个人 | D120: 30.00 | E120: 2025-07-01T10:23:43 | F120: 否 | L120: 30.00
A121: 116 | B121: 邓^^蒲公英的翅膀^^邓 | C121: 个人 | D121: 10.00 | E121: 2025-07-01T10:39:04 | F121: 否 | L121: 10.00
A122: 117 | B122: 阳山县花溪水电有限公司职工 | C122: 企业 | D122: 345.00 | E122: 2025-07-01T10:42:07 | F122: 否 | L122: 345.00
A123: 118 | B123: 阳山县甲一水力发电有限公司职工 | C123: 企业 | D123: 600.00 | E123: 2025-07-01T10:44:12 | F123: 否 | L123: 600.00
A124: 119 | B124: 阳山县盛阳城镇建设投资开发有限公司职工 | C124: 企业 | D124: 1400.00 | E124: 2025-07-01T10:46:14 | F124: 否 | L124: 1400.00
A125: 120 | B125: 阳山县甲坑二级水电站有限公司职工 | C125: 企业 | D125: 660.00 | E125: 2025-07-01T10:49:10 | F125: 否 | L125: 660.00
A126: 121 | B126: 阳山县山麻坑水力发电有限公司职工 | C126: 企业 | D126: 220.00 | E126: 2025-07-01T10:50:37 | F126: 否 | L126: 220.00
A127: 122 | B127: 爱心人士 | C127: 个人 | D127: 50.00 | E127: 2025-07-01T10:51:26 | F127: 否 | L127: 50.00
A128: 123 | B128: 林文滔 | C128: 个人 | D128: 20.00 | E128: 2025-07-01T10:57:39 | F128: 否 | L128: 20.00
A129: 124 | B129: Roar | C129: 个人 | D129: 10.00 | E129: 2025-07-01T11:28:30 | F129: 否 | L129: 10.00
A130: 125 | B130: 阳山具青莲大洞牛栏坪水电站（普通合伙）91441823MA52K2KL1B | C130: 企业 | D130: 500.00 | E130: 2025-07-01T12:04:57 | F130: 否 | L130: 500.00
A131: 126 | B131: A御鹏定制衣柜厂赖小姐 | C131: 个人 | D131: 20.00 | E131: 2025-07-01T12:09:30 | F131: 否 | L131: 20.00
A132: 127 | B132: 小猪*宝宝 | C132: 个人 | D132: 10.00 | E132: 2025-07-01T12:21:45 | F132: 否 | L132: 10.00
A133: 128 | B133: 微微一笑 | C133: 个人 | D133: 10.00 | E133: 2025-07-01T12:23:55 | F133: 否 | L133: 10.00
A134: 129 | B134: 爱心人士 | C134: 个人 | D134: 10.00 | E134: 2025-07-01T12:24:12 | F134: 否 | L134: 10.00
A135: 130 | B135: 爱心人士 | C135: 个人 | D135: 10.00 | E135: 2025-07-01T12:27:39 | F135: 否 | L135: =D135-J135 -> 10.00
A136: 131 | B136: 爱心人士 | C136: 个人 | D136: 10.00 | E136: 2025-07-01T12:28:26 | F136: 否 | L136: 10.00
A137: 132 | B137: 爱心人士 | C137: 个人 | D137: 10.00 | E137: 2025-07-01T12:38:08 | F137: 否 | L137: 10.00
A138: 133 | B138: diqishan | C138: 个人 | D138: 10.00 | E138: 2025-07-01T12:43:09 | F138: 否 | L138: 10.00
A139: 134 | B139: 芷洋 | C139: 个人 | D139: 10.00 | E139: 2025-07-01T12:44:01 | F139: 否 | L139: 10.00
A140: 135 | B140: 李勇基 | C140: 个人 | D140: 10.00 | E140: 2025-07-01T12:54:15 | F140: 否 | L140: 10.00
A141: 136 | B141: 伍何妹 | C141: 个人 | D141: 10.00 | E141: 2025-07-01T12:54:19 | F141: 否 | L141: 10.00
A142: 137 | B142: 雨后有彩虹 | C142: 个人 | D142: 10.00 | E142: 2025-07-01T12:56:41 | F142: 否 | L142: 10.00
A143: 138 | B143: 潢мīй.徔 | C143: 个人 | D143: 10.00 | E143: 2025-07-01T12:57:37 | F143: 否 | L143: 10.00
A144: 139 | B144: ZAL | C144: 个人 | D144: 10.00 | E144: 2025-07-01T12:59:59 | F144: 否 | L144: 10.00
A145: 140 | B145: 雾风 | C145: 个人 | D145: 10.00 | E145: 2025-07-01T13:15:29 | F145: 否 | L145: 10.00
A146: 141 | B146: 蓝粤辰妈咪 | C146: 个人 | D146: 10.00 | E146: 2025-07-01T13:21:41 | F146: 否 | L146: 10.00
A147: 142 | B147: 小英英 | C147: 个人 | D147: 10.00 | E147: 2025-07-01T13:23:18 | F147: 否 | L147: 10.00
A148: 143 | B148: 小 | C148: 个人 | D148: 10.00 | E148: 2025-07-01T13:33:39 | F148: 否 | L148: 10.00
A149: 144 | B149: 爱心人士 | C149: 个人 | D149: 10.00 | E149: 2025-07-01T14:37:46 | F149: 否 | L149: 10.00
A150: 145 | B150: 阳山县人民政府办公室 | C150: 机关 | D150: 10050.00 | E150: 2025-07-01T15:04:41 | F150: 否 | L150: 10050.00
A151: 146 | B151: 曾乐伟 | C151: 个人 | D151: 1000 | E151: 2025-07-01T15:24:32 | F151: 是 | L151: 1000.00 | M151: 有
A152: 147 | B152: 爱心人士 | C152: 个人 | D152: 999.00 | E152: 2025-07-01T15:25:56 | F152: 否 | L152: 999.00
A153: 148 | B153: 黄金福 | C153: 个人 | D153: 1000 | E153: 2025-07-01T15:30:25 | F153: 是 | L153: 1000.00 | M153: 杨梅镇
A154: 149 | B154: 李方杰 | C154: 个人 | D154: 300.00 | E154: 2025-07-01T15:31:36 | F154: 否 | L154: 300.00
A155: 150 | B155: 葸念 | C155: 个人 | D155: 10.00 | E155: 2025-07-01T15:40:10 | F155: 否 | L155: 10.00
A156: 151 | B156: 欧志文 | C156: 个人 | D156: 500.00 | E156: 2025-07-01T16:21:52 | F156: 否 | L156: 500.00
A157: 152 | B157: 爱心人士 | C157: 个人 | D157: 0.10 | E157: 2025-07-01T16:39:04 | F157: 否 | L157: 0.10
A158: 153 | B158: 潘来娣 | C158: 个人 | D158: 300 | E158: 2025-07-01T16:48:28 | F158: 是 | L158: 300.00 | M158: 杨梅镇
A159: 154 | B159: 爱心人士 | C159: 个人 | D159: 20.00 | E159: 2025-07-01T16:55:35 | F159: 否 | L159: 20.00
A160: 155 | B160: ℡?笑着面对每天?℡ | C160: 个人 | D160: 10.00 | E160: 2025-07-01T21:34:52 | F160: 否 | L160: 10.00
A161: 156 | B161: 红红 | C161: 个人 | D161: 10.00 | E161: 2025-07-01T22:00:32 | F161: 否 | L161: 10.00
A162: 157 | B162: 明天会更好 | C162: 个人 | D162: 20.00 | E162: 2025-07-02T07:51:10 | F162: 否 | L162: 20.00
A163: 158 | B163: 中国人民政治协商会议广东省阳山县委员会办公室 | C163: 机关 | D163: 9400.00 | E163: 2025-07-02T08:44:09 | F163: 否 | L163: 9400.00
A164: 159 | B164: 阳山县文学艺术界联合会 | C164: 机关 | D164: 700.00 | E164: 2025-07-02T09:08:25 | F164: 否 | L164: 700.00
A165: 160 | B165: 中共阳山县委统一战线工作部 | C165: 机关 | D165: 2600.00 | E165: 2025-07-02T09:44:56 | F165: 否 | L165: 2600.00
A166: 161 | B166: 阳山县实验小学 | C166: 事业单位 | D166: 2320.00 | E166: 2025-07-02T09:59:00 | F166: 否 | L166: 2320.00
A167: 162 | B167: 乡坚农业种植专业合作13431978817 | C167: 个人 | D167: 238.00 | E167: 2025-07-02T10:25:46 | F167: 否 | L167: 238.00
A168: 163 | B168: 小小冯 | C168: 个人 | D168: 0.20 | E168: 2025-07-02T10:30:23 | F168: 否 | L168: 0.20
A169: 164 | B169: 小冯 | C169: 个人 | D169: 0.10 | E169: 2025-07-02T10:35:28 | F169: 否 | L169: 0.10
A170: 165 | B170: 阳山县发展和改革局 | C170: 机关 | D170: 4530.00 | E170: 2025-07-02T10:40:22 | F170: 否 | L170: 4530.00
A171: 166 | B171: 国家金融监督管理总局阳山监管支局 | C171: 机关 | D171: 1260.00 | E171: 2025-07-02T11:22:27 | F171: 否 | L171: 1260.00
A172: 167 | B172: 悦山文旅欧阳 | C172: 个人 | D172: 500.00 | E172: 2025-07-02T12:06:34 | F172: 否 | L172: 500.00
A173: 168 | B173: 赖卫号 | C173: 个人 | D173: 100.00 | E173: 2025-07-02T12:27:38 | F173: 否 | L173: 100.00
A174: 169 | B174: 往事随风 | C174: 个人 | D174: 5.00 | E174: 2025-07-02T13:11:31 | F174: 否 | L174: 5.00
A175: 170 | B175: 阳山非常广告李志华 | C175: 个人 | D175: 300.00 | E175: 2025-07-02T12:27:38 | F175: 否 | L175: 300.00
A176: 171 | B176: 广东奇乡食品有限公司 | C176: 企业 | D176: 800 | E176: 2025-07-02T13:11:31 | F176: 是 | L176: 800.00 | M176: 七拱镇塘坪村
A177: 172 | B177: 阳山县第二中学 | C177: 事业单位 | D177: 5138.00 | E177: 2025-07-02T12:27:38 | F177: 否 | L177: 5138.00
A178: 173 | B178: 花的色彩 | C178: 个人 | D178: 20.00 | E178: 2025-07-03T12:27:38 | F178: 否 | L178: 20.00
A179: 174 | B179: tomato | C179: 个人 | D179: 20.00 | E179: 2025-07-03T12:27:38 | F179: 否 | L179: 20.00
A180: 175 | B180: 朱Mao | C180: 个人 | D180: 20.00 | E180: 2025-07-03T12:27:38 | F180: 否 | L180: 20.00
A181: 176 | B181: 阳城镇畔水小学伍伟萍 | C181: 个人 | D181: 20.00 | E181: 2025-07-03T12:27:38 | F181: 否 | L181: 20.00
A182: 177 | B182: 彭志雄 | C182: 个人 | D182: 50.00 | E182: 2025-07-03T12:27:38 | F182: 否 | L182: 50.00
A183: 178 | B183: 阳城镇畔水小学沈葵花 | C183: 个人 | D183: 20.00 | E183: 2025-07-03T12:27:38 | F183: 否 | L183: 20.00
A184: 179 | B184: 阳山县大崀学校 | C184: 事业单位 | D184: 4350 | E184: 2025-07-03T12:27:38 | F184: 是 | L184: 4350.00 | M184: 大崀
A185: 180 | B185: 梁建荣 | C185: 个人 | D185: 20.00 | E185: 2025-07-03T12:27:38 | F185: 否 | L185: 20.00
A186: 181 | B186: 清远市阳山县清能绿脉新能源有限公司 | C186: 企业 | D186: 1000 | E186: 2025-07-03T12:27:38 | F186: 是 | L186: 1000.00 | M186: 黎埠镇六古村委会
A187: 182 | B187: 阳山县碧桂园幼儿园 | C187: 事业单位 | D187: 1530.00 | E187: 2025-07-03T12:27:38 | F187: 否 | L187: 1530.00
A188: 183 | B188: 梦李雄辉 | C188: 个人 | D188: 20.00 | E188: 2025-07-03T12:27:38 | F188: 否 | L188: 20.00
A189: 184 | B189: 爱心人士 | C189: 个人 | D189: 20.00 | E189: 2025-07-03T12:27:38 | F189: 否 | L189: 20.00
A190: 185 | B190: 阳山温氏畜牧有限公司 | C190: 企业 | D190: 2000 | E190: 2025-07-03T12:27:38 | F190: 是 | L190: 2000.00 | M190: 七拱镇
A191: 186 | B191: 阳山县庆达水电有限公司 | C191: 企业 | D191: 500 | E191: 2025-07-03T12:27:38 | F191: 是 | L191: 500.00 | M191: 七拱镇
A192: 187 | B192: 清远市粤运汽车运输有限公司阳山分公司 | C192: 企业 | D192: 1610.00 | E192: 2025-07-03T12:27:38 | F192: 否 | L192: 1610.00
A193: 188 | B193: 阳山县小江镇冯光纪念中学 | C193: 事业单位 | D193: 770.00 | E193: 2025-07-03T12:27:38 | F193: 否 | L193: 770.00
A194: 189 | B194: 冯屋李花园生态农庄 | C194: 企业 | D194: 666.00 | E194: 2025-07-04T12:27:38 | F194: 否 | L194: 666.00
A195: 190 | B195: 万口福粮油店廖宗健 | C195: 企业 | D195: 188.88 | E195: 2025-07-04T12:27:38 | F195: 否 | L195: 188.88
A196: 191 | B196: 杨膳瑜 | C196: 个人 | D196: 30.00 | E196: 2025-07-04T12:27:38 | F196: 否 | L196: 30.00
A197: 192 | B197: 阳山县阳城镇中心小学 | C197: 事业单位 | D197: 4960.00 | E197: 2025-07-04T12:27:38 | F197: 否 | L197: 4960.00
A198: 193 | B198: 阳山县岭背镇犁头中学 | C198: 事业单位 | D198: 1130 | E198: 2025-07-04T12:27:38 | F198: 是 | L198: 1130.00 | M198: 岭背镇
A199: 194 | B199: 潘卫平 | C199: 个人 | D199: 100.00 | E199: 2025-07-04T12:27:38 | F199: 否 | L199: =D199-J199 -> 100.00
A200: 195 | B200: 阳山县大崀镇卫生院 | C200: 事业单位 | D200: 510 | E200: 2025-07-04T12:27:38 | F200: 是 | L200: 510.00 | M200: 大崀镇
A201: 196 | B201: 阳山县小江中学 | C201: 事业单位 | D201: 1150.00 | E201: 2025-07-04T12:27:38 | F201: 否 | L201: 1150.00
... 338 more rows
